Cogmind - Beta 17 @@@ ROGUE MODE // 2026.07.14 @ 06:09:06 Player: kite Result: Self-destructed Performance ------------- Evolutions (2) 1000 Regions Visited (5) 1000 Robots Destroyed (64) 320 Value Destroyed (1196) 1196 Prototype IDs (35) 700 Alien Tech Used (0) 0 Bonus (300) 300 TOTAL SCORE: 4516 Bonus ------- Aligned with FarCom 300 Cogmind --------- Core Integrity 436/550 Matter 220/300 Energy 100/100 System Corruption 0% Temperature Cool (0) Movement Treading (240) Ox1 Location -8/Materials Parts ------- > --- POWER (1) -------- (None) > --- PROPULSION (4) --- Light Treads Light Treads Light Treads > --- UTILITY (3) ------ Huge Storage Unit Medium Armor Plating Reflective Plating > --- WEAPON (3) ------- Great Maul Great Maul Katana > --- INVENTORY (25) --- Ion Engine Light Treads Wheel Flight Unit Large Storage Unit Seismic Detector Medium Armor Plating Medium Armor Plating Reactive Plating Reflective Plating Insulated Plating AWS/Thermal Shotgun Shock Bomb Launcher Shock Bomb Launcher Mace Mace Flail Flail Flail Heavy Flail Heavy Flail Great Maul Great Maul Peak State ------------ > --- POWER ------------ Ion Engine > --- PROPULSION ------- Light Treads Light Treads Light Treads > --- UTILITY ---------- Huge Storage Unit Medium Armor Plating Reflective Plating > --- WEAPON ----------- Advanced EMP Blaster Great Maul Great Maul > --- INVENTORY -------- Ion Engine Light Treads Light Treads Wheel Flight Unit Large Storage Unit Seismic Detector Medium Armor Plating Medium Armor Plating Reactive Plating Reflective Plating AWS/Thermal Shotgun Shock Bomb Launcher Shock Bomb Launcher Mace Mace Flail Flail Flail Flail Heavy Flail Heavy Flail Great Maul [Rating: 26] Favorites ----------- Power Ion Engine Engine Ion Engine Propulsion Light Treads Treads Light Treads Wheel Wheel Utility Huge Storage Unit Device Seismic Detector Storage Huge Storage Unit Processor Terrain Scan Processor Protection Reflective Plating Weapon Shotgun Ballistic Gun Shotgun Launcher Shock Bomb Launcher Impact Weapon Great Maul Slashing Weapon Katana Special Melee Weapon Datajack Build | -11 -10 -10 -10 -9 -8 ------- Run | Yrd Mat Min Exi Min Mat Slots Evolved 4 | . . . . . 4 Power . | . . . . . . Propulsion 2 | . . . . . 2 Utility 1 | . . . . . 1 Weapon 1 | . . . . . 1 Parts Attached 37 | 6 10 . 2 2 17 Power 1 | 1 . . . . . Engine 1 | 1 . . . . . Core . | . . . . . . Reactor . | . . . . . . Propulsion 9 | 2 1 . . 2 4 Treads 5 | 2 1 . . . 2 Leg . | . . . . . . Wheel 4 | . . . . 2 2 Hover . | . . . . . . Flight . | . . . . . . Utility 8 | 1 2 . 1 . 4 Device 2 | . 1 . . . 1 Storage 3 | 1 1 . 1 . . Processor 1 | . . . . . 1 Hackware . | . . . . . . Protection 2 | . . . . . 2 Artifact . | . . . . . . Weapon 19 | 2 7 . 1 . 9 Energy Gun . | . . . . . . Energy Cannon . | . . . . . . Ballistic Gun 10 | 2 6 . . . 2 Ballistic Cannon . | . . . . . . Launcher 2 | . . . . . 2 Special Weapon . | . . . . . . Impact Weapon 5 | . 1 . . . 4 Slashing Weapon 1 | . . . . . 1 Piercing Weapon . | . . . . . . Special Melee Weapon 1 | . . . 1 . . Unidentified Prototypes 1 | . . . . . 1 Parts Lost 4 | . . . . . 4 Power 1 | . . . . . 1 Propulsion 2 | . . . . . 2 Utility 1 | . . . . . 1 Weapon . | . . . . . . Highest Loss Streak 2 | . . . . . 2 To Critical Strikes . | . . . . . . Average Backups 15 | 2 12 15 14 17 20 Power . | . 1 1 1 1 1 Propulsion 2 | 1 3 2 2 4 2 Utility 2 | . . 2 3 3 4 Weapon 9 | . 6 8 8 9 12 Tool/Special . | . . . . . . Unused Backups 25 | . 8 1 . . 16 Power 1 | . . . . . 1 Propulsion 4 | . 1 1 . . 2 Utility 5 | . . . . . 5 Weapon 15 | . 7 . . . 8 Tool/Special . | . . . . . . Average Slot Usage (%) 94 | . 97 100 99 100 87 Engine 12 | . 14 14 14 14 8 Treads 26 | . 28 28 28 16 26 Wheel 1 | . . . . 12 2 Device 6 | . 6 14 14 14 1 Storage 13 | . 19 14 14 14 9 Processor 1 | . . . . . 2 Protection 3 | . . . . . 8 Ballistic Gun 18 | . 27 28 24 28 4 Impact Weapon 7 | . . . . . 20 Peak Build Rating 26 | 6 11 11 13 13 26 Average Rating 14 | 4 9 11 11 12 22 On Entrance 9 | . 6 11 11 13 13 Avg Prop Armor Cover (%) 11 | . . . . 11 . Naked Turns . | . . . . . . Heaviest Build 108 | 13 36 32 92 92 108 Greatest Support 80 | 40 40 40 40 40 80 Greatest Overweight (x) 9 | . . . 2 9 2 Average Overweight (x) . | . . . . 3 1 Largest Inventory Capacity 25 | 8 15 15 25 25 25 Average Capacity 19 | 7 13 15 21 25 25 Most Carried 25 | 4 15 15 16 21 25 Average Carried 16 | 2 12 15 15 18 21 Final Capacity 25 | 8 15 15 25 25 25 Final Carried 25 | 4 15 15 16 21 25 Class Distribution -------------------- 94% | Mutant Dominant Class ---------------- Mutant | -10/Materials Mutant | -10/Mines Mutant | -10/Exiles Mutant | -9/Mines Mutant | -8/Materials Resources | -11 -10 -10 -10 -9 -8 ----------- Run | Yrd Mat Min Exi Min Mat Matter Collected 1382 | 274 569 20 . 28 491 Remotely . | . . . . . . Salvage Created 1919 | 39 715 38 . 104 1023 Parts 132 | 7 55 6 . 18 46 Haulers Intercepted 3 | . 2 . . . 1 Recyclers Shooed . | . . . . . . Parts Field Recycled . | . . . . . . Retrieved Matter . | . . . . . . Parts Self-Destructed . | . . . . . . Prevented . | . . . . . . Parts Restored . | . . . . . . Kills | -11 -10 -10 -10 -9 -8 ------- Run | Yrd Mat Min Exi Min Mat Combat Hostiles Destroyed 42 | . 23 . . 4 15 Melee 3 | . . . . . 3 Guns 32 | . 23 . . 4 5 AOE 4 | . . . . . 4 Classes Destroyed 11 | 1 6 . . . 4 Worker 5 | . 1 . . . 4 Builder 5 | . 1 . . 2 2 Tunneler 5 | 2 . 2 . 1 . Hauler 3 | . 2 . . . 1 Recycler 3 | . 1 . . . 2 Watcher 1 | . . . . . 1 Swarmer 21 | . 14 . . 4 3 Grunt 14 | . 9 . . . 5 Brawler 1 | . . . . . 1 Duelist 1 | . . . . . 1 Sentry 5 | . . . . . 5 Best Kill Streak 7 | 2 6 1 . 4 7 Combat Bots Only 5 | . 5 . . 4 4 Max Kills in Single Turn 2 | 1 2 1 . 2 2 Gunslinging 1 | . 1 . . 1 . Exploded 1 | . . . . . 1 Melee 1 | . . . . . 1 Uniques/NPCs Destroyed . | . . . . . . Combat | -11 -10 -10 -10 -9 -8 -------- Run | Yrd Mat Min Exi Min Mat Hostile Shots Fired 194 | . 98 . . 11 85 Missed 57 | . 31 . . 5 21 Hits 137 | . 67 . . 6 64 Melee 1 | . . . . . 1 Projectile 136 | . 67 . . 6 63 Critical Strikes 5 | . 1 . . . 4 Damage Taken 1544 | . 602 . . 47 895 Core 232 | . 103 . . 15 114 Absorbed by Shields . | . . . . . . Ignored by Resistances 46 | . . . . . 46 Regen/Repaired (Parts) 249 | . . . . . 249 Core Remaining (%) 76 | 100 . . . 52 . Volleys Fired 110 | 5 70 2 . 11 22 Largest 3 | 2 2 2 . 2 3 Hottest 73 | 40 46 46 . 46 73 Shots Fired 223 | 9 136 4 . 22 52 Gun 216 | 9 136 4 . 22 45 Cannon . | . . . . . . Launcher 7 | . . . . . 7 Special . | . . . . . . Kinetic 216 | 9 136 4 . 22 45 Thermal . | . . . . . . Explosive . | . . . . . . Electromagnetic 7 | . . . . . 7 Robot Hit Streak 8 | 5 6 4 . 4 8 Robot Miss Streak 6 | . 6 1 . 4 3 Penetration Max . | . . . . . . Secondary Targets 6 | . 4 . . 2 . Max Gunslinging Chain 1 | . 1 . . 1 . Shots Hit Robots 171 | 5 85 3 3 16 59 Core Hits 83 | 3 40 2 . 10 28 Critical Kills 5 | . 2 . . . 3 Critical Parts Destroyed 5 | . . . . 1 4 Critical Strikes 11 | . 2 . . 1 8 Destroy 4 | . 2 . . 1 1 Smash 6 | . . . . . 6 Sever 1 | . . . . . 1 Melee Attacks 47 | . 2 . 3 . 42 Impact 37 | . 2 . . . 35 Slashing 7 | . . . . . 7 Piercing . | . . . . . . Sneak Attacks 9 | . . . 3 . 6 Combat Hostiles . | . . . . . . Follow-up Attacks 3 | . . . . . 3 Damage Inflicted 3800 | 52 1240 45 . 235 2228 Guns 2066 | 52 1235 45 . 235 499 Cannons . | . . . . . . Explosions 474 | . . . . . 474 Melee 1255 | . . . . . 1255 Ramming 5 | . 5 . . . . Kinetic 2066 | 52 1235 45 . 235 499 Thermal . | . . . . . . Explosive . | . . . . . . Electromagnetic 474 | . . . . . 474 Impact 1056 | . . . . . 1056 Slashing 199 | . . . . . 199 Piercing . | . . . . . . Highest Corruption . | . . . . . . Average Corruption . | . . . . . . Corruption Purged . | . . . . . . Corruption Blocked . | . . . . . . Overload Shots . | . . . . . . Overflow Damage 379 | . . . . . 379 Projectiles . | . . . . . . Explosions . | . . . . . . Melee 379 | . . . . . 379 Knockbacks 7 | . . . . . 7 Impact 6 | . . . . . 6 Kinetic . | . . . . . . Secondary 1 | . . . . . 1 Self-Inflicted Damage 16 | . . . . . 16 Shots 1 | . . . . . 1 Rammed 1 | . 1 . . . . Targets Rammed 1 | . 1 . . . . Kicked . | . . . . . . Crushed . | . . . . . . Highest Temperature 58 | . 6 . . . 58 Average Temperature 13 | . 2 . . . 19 Received Heat Transfer 552 | . 156 . . . 396 Siege Activations . | . . . . . . Martial Activations . | . . . . . . Shielding Activations . | . . . . . . Robots Disrupted . | . . . . . . Combat Hostiles . | . . . . . . Robots Corrupted 6 | . . . . . 6 Combat Hostiles 3 | . . . . . 3 Parts Fried 8 | . . . . . 8 Impact Corruptions 16 | . . . . . 16 Robots Melted . | . . . . . . Combat Hostiles . | . . . . . . Parts Melted . | . . . . . . Heat Transferred . | . . . . . . Parts Sabotaged . | . . . . . . Parts Stolen . | . . . . . . Parts Stripped . | . . . . . . Power Chain Reactions 2 | . . . . . 2 Alert | -11 -10 -10 -10 -9 -8 ------- Run | Yrd Mat Min Exi Min Mat Maximum Alert Level 1 | . 1 . . . 1 Low Security (%) 93 | 100 86 100 . 100 96 Level 1 6 | . 13 . . . 3 Level 2 . | . . . . . . Level 3 . | . . . . . . Level 4 . | . . . . . . Level 5 . | . . . . . . High Security . | . . . . . . Max Security . | . . . . . . Peak Influence 336 | 10 245 97 . 90 336 Initial 92 | . . 92 . . 5 Average 70 | . 120 60 . 50 33 Influence Increases 1501 | 10 672 10 . 105 704 Destroy 0b10 Robot/C 840 | . 460 . . 80 300 Destroy 0b10 Robot/NC 110 | 10 25 10 . 15 50 Destroy Leader 178 | . 74 . . 10 94 Successful Hack 12 | . 6 . . . 6 Disable Machine 30 | . 15 . . . 15 Destroy Structure 16 | . 2 . . . 14 Partial Spotted 15 | . 15 . . . . Lose Combat Pursuer 300 | . 75 . . . 225 Influence Decreases 1165 | 10 434 226 22 90 383 Entered New Map 178 | . . 146 22 . 10 Time Decay 947 | 10 434 80 . 90 333 Lost Part 40 | . . . . . 40 Squads Dispatched 5 | . 4 . . . 1 Investigation 4 | . 4 . . . . Extermination . | . . . . . . Reinforcement 1 | . . . . . 1 Assault . | . . . . . . Garrison . | . . . . . . Intercept . | . . . . . . Searches Triggered . | . . . . . . Construction Impeded 1 | . . . . . 1 Haulers Reinforced . | . . . . . . Active Scanning Responses . | . . . . . . Cargo Convoy Interrupts . | . . . . . . Stealth | -11 -10 -10 -10 -9 -8 --------- Run | Yrd Mat Min Exi Min Mat Distress Signals 7 | . 2 . . . 5 Communications Jammed . | . . . . . . Distress Signals . | . . . . . . Times Spotted 80 | . 40 . . 2 38 Peak Tracking Total 11 | . 5 . . 2 11 Tactical Retreats 10 | . 5 . . . 5 Traps | -11 -10 -10 -10 -9 -8 ------- Run | Yrd Mat Min Exi Min Mat Traps Triggered 1 | . 1 . . . . Indirectly . | . . . . . . Trap Hack Attempts . | . . . . . . Triggered . | . . . . . . Disarmed . | . . . . . . Reprogrammed . | . . . . . . Reused . | . . . . . . Traps Extracted . | . . . . . . Installed . | . . . . . . Triggered . | . . . . . . Machines | -11 -10 -10 -10 -9 -8 ---------- Run | Yrd Mat Min Exi Min Mat Machines Disabled 2 | . 1 . . . 1 Max in Single Turn 1 | . 1 . . . 1 Machines Repaired . | . . . . . . Machines Dismantled . | . . . . . . Machines Sabotaged . | . . . . . . Overloaded Fab Kills . | . . . . . . Hacking | -11 -10 -10 -10 -9 -8 --------- Run | Yrd Mat Min Exi Min Mat Machines Accessed 8 | . 4 . 2 . 2 Terminals 5 | . 4 . . . 1 Fabricators . | . . . . . . Repair Stations 1 | . . . . . 1 Recycling Units . | . . . . . . Scanalyzers . | . . . . . . Garrison Access . | . . . . . . Total Hacks 27 | . 14 . 5 . 8 Successful 14 | . 4 . 5 . 5 Failed 13 | . 10 . . . 3 Catastrophic 1 | . . . . . 1 Database Lockouts . | . . . . . . Manual 16 | . 14 . 1 . 1 Terminals 17 | . 14 . . . 3 Fabricators . | . . . . . . Repair Stations 5 | . . . . . 5 Recycling Units . | . . . . . . Scanalyzers . | . . . . . . Garrison Access . | . . . . . . Terminal Hacks 7 | . 2 . 5 . . Record 4 | . . . 4 . . Part Schematic 2 | . 2 . . . . Proto ID Catalog 1 | . . . 1 . . Fabricator Hacks . | . . . . . . Repair Station Hacks 4 | . . . . . 4 Scan Component 2 | . . . . . 2 Repair 2 | . . . . . 2 Recycling Unit Hacks . | . . . . . . Scanalyzer . | . . . . . . Garrison Access Hacks . | . . . . . . Unauthorized Hacks 3 | . 2 . . . 1 Terminals 3 | . 2 . . . 1 Botnet 3 | . 2 . . . 1 Fabricators . | . . . . . . Repair Stations . | . . . . . . Recycling Units . | . . . . . . Scanalyzers . | . . . . . . Garrison Access . | . . . . . . Data Cores Recovered . | . . . . . . Used . | . . . . . . Hacking Detections 6 | . 4 . . . 2 Full Trace Events 2 | . 1 . . . 1 Feedback Events . | . . . . . . Feedback Blocked . | . . . . . . Robot Schematics Acquired . | . . . . . . Robots Built . | . . . . . . Authchips . | . . . . . . Time . | . . . . . . Total Robot Build Rating . | . . . . . . Part Schematics Acquired 2 | . 2 . . . . Parts Built . | . . . . . . Authchips . | . . . . . . Time . | . . . . . . Total Part Build Rating . | . . . . . . Part Studies Acquired . | . . . . . . Parts Repaired 2 | . . . . . 2 Time 52 | . . . . . 52 Parts Recycled . | . . . . . . Recycled Matter . | . . . . . . Retrieved Matter . | . . . . . . Retrieved Components . | . . . . . . Parts Scanalyzed . | . . . . . . Part Schematics Acquired . | . . . . . . Parts Damaged . | . . . . . . Bothacking | -11 -10 -10 -10 -9 -8 ------------ Run | Yrd Mat Min Exi Min Mat Used RIF Installer . | . . . . . . Robots Hacked 3 | . . . 3 . . Non-combat 2 | . . . 2 . . Combat 1 | . . . 1 . . Robot Hacks Applied 3 | . . . 3 . . parse_system 3 | . . . 3 . . Relay Couplers Released . | . . . . . . Fabnet Peak Effective % . | . . . . . . Robots Rewired . | . . . . . . Allies Hacked . | . . . . . . Hacks Repelled . | . . . . . . Allies | -11 -10 -10 -10 -9 -8 -------- Run | Yrd Mat Min Exi Min Mat Total Allies . | . . . . . . Largest Group . | . . . . . . Highest-Rated Group . | . . . . . . Highest-Rated Ally . | . . . . . . Total Orders . | . . . . . . Ally Attacks . | . . . . . . Total Damage . | . . . . . . Kills . | . . . . . . Allies Corrupted . | . . . . . . Allies Melted . | . . . . . . Intel | -11 -10 -10 -10 -9 -8 ------- Run | Yrd Mat Min Exi Min Mat Active Infowar (turns) 1672 | . 551 178 570 199 174 Terrain 47 | . . . . . 47 Seismic 1625 | . 551 178 570 199 127 Robot Analysis Total . | . . . . . . Derelict Logs Recovered . | . . . . . . Drone Launches . | . . . . . . Drone Recoveries . | . . . . . . Exploration | -11 -10 -10 -10 -9 -8 ------------- Run | Yrd Mat Min Exi Min Mat Turns Passed 3576 | 123 1214 178 570 199 1292 Spaces Moved 1453 | 63 580 106 240 79 385 Core 3 | 3 . . . . . Treads 1362 | 60 580 106 240 25 351 Legs . | . . . . . . Wheels 88 | . . . . 54 34 Hover . | . . . . . . Flight . | . . . . . . Fastest Speed 50 | 50 160 160 160 140 110 Average Speed 192 | 154 160 160 232 200 228 Slowest Speed 320 | 160 160 160 320 320 240 Overloaded Moves . | . . . . . . Propulsion Burnouts . | . . . . . . Robots Hopped . | . . . . . . Potential Cave-ins . | . . . . . . Cave-ins Triggered . | . . . . . . Exploration Rate (%) 39 | 3 87 34 59 12 40 Regions Visited 5 Branch Regions 3 Pre-discovered Areas 1 | . . . 1 . . Known Exits Taken . | . . . . . . Unknown Exits Taken 5 | 1 1 1 1 1 . Scrap Searched . | . . . . . . Spaces Dug 12 | . 2 . . . 10 Terrain Destroyed 15 | . 2 . . . 13 Melee 12 | . 2 . . . 10 Projectile . | . . . . . . AOE 3 | . . . . . 3 Terrain Rammed . | . . . . . . Walls Destroyed . | . . . . . . Machines Disabled . | . . . . . . Actions | -11 -10 -10 -10 -9 -8 --------- Run | Yrd Mat Min Exi Min Mat Total 1966 | 77 736 111 251 97 694 Wait 233 | . 34 2 . . 197 Move 1448 | 62 579 105 239 78 385 Hop . | . . . . . . Pick Up 50 | 4 22 1 2 4 17 Fast Attach 19 | 6 2 . 1 2 8 Attach 11 | . . . . . 11 Detach 1 | . . . . 1 . Swap 17 | . 9 . 3 . 5 Drop 36 | . 17 1 3 1 14 Fire 110 | 5 70 2 . 11 22 Melee 40 | . 2 . 3 . 35 Ram . | . . . . . . Kick . | . . . . . . Crush 1 | . 1 . . . . Escape Stasis . | . . . . . . Rewire . | . . . . . . Trap . | . . . . . . Miscellaneous . | . . . . . . Route ------- -11/Scrapyard -10/Materials (discovered 5 exits: [*Mat x3] / [*Min] / [*Sub]) -10/Mines -10/Exiles -9/Mines -8/Materials History --------- Turn | Location | Event 24 | -11/Scrapyard | Discovered new exit (range 16) 124 | -11/Scrapyard | Entered Materials 318 | -10/Materials | Build established: Mutant 348 | -10/Materials | Discovered new exit (range 8) 614 | -10/Materials | Discovered new exit (range 13) 724 | -10/Materials | Derelicts attacked the area 973 | -10/Materials | Discovered new exit (range 11) 1197 | -10/Materials | Discovered new exit (range 5) 1281 | -10/Materials | Discovered new exit (range 12) 1338 | -10/Materials | Entered Mines 1510 | -10/Mines | Deemed a non-threat by the Exiles lab entrance 1510 | -10/Mines | Discovered new exit (range 5) 1516 | -10/Mines | Entered Exiles 1560 | -10/Exiles | Met 8R-AWN 1584 | -10/Exiles | Met EX-HEX 1657 | -10/Exiles | Met EX-BIN 1678 | -10/Exiles | Aligned with FarCom system 1679 | -10/Exiles | Given EX-Vault access code 1716 | -10/Exiles | Opened EX-Vault 1738 | -10/Exiles | Found AWS/Thermal 1810 | -10/Exiles | Warned to stay clear of 0b10 Research branches 1910 | -10/Exiles | Met EX-DEC 1929 | -10/Exiles | Learned location of Zion (-7) 2054 | -10/Exiles | Discovered new exit (range 11) 2086 | -10/Exiles | Left Exiles lab with AWS/Thermal 2086 | -10/Exiles | Entered Mines 2262 | -9/Mines | Discovered new exit (range 15) 2285 | -9/Mines | Entered Materials 2285 | -8/Materials | Evolved 4 slots: Propulsion x2, Utility x1, Weapon x1 3172 | -8/Materials | Repaired Lgt. Treads 3201 | -8/Materials | Repaired Lgt. Treads? 3577 | -8/Materials | Self-destructed Last Messages --------------- 03515_ Chain reaction triggered in Corrupted Rnf. Ion Engine. 03526_ Critical hit (Burn: +37). 03545_ W-25 Informer sends out distress signal. 03547_ Destroyed Lgt. Deuterium Engine. 03547_ W-25 Informer system corrupted by crushing effect. 03547_ W-25 Informer knocked back. 03548_ R-06 Scavenger collects Corrupted Hvy. Assault Rifle. 03550_ Y-45 Defender Lgt. Treads severed. 03553_ Ion Engine destroyed. 03553_ Critical hit (Burn: +37). 03556_ U-05 Engineer lays Concrete. 03559_ U-05 Engineer builds a Wall. 03559_ Critical hit (Burn: +37). 03560_ Y-45 Defender destroyed. 03567_ Acquired 57 matter. 03569_ K-01 Serf collects debris. 03569_ W-25 Informer sends out distress signal. Map ----- +----------------------------------------------------+ | | | ?????????????????????????????????????????????????? | | ?????????????????????????????????????????????????? | | ?????????????????????????????????????????????????? | | ?????????????????????????????????????????????????? | | ?????????????????????????????????????????????????? | | ?????????????????????????????????????????????????? | | ?????????????????????????????????????????????????? | | ?????????????????????????????????????????????????? | | ?????????????????????????????????????????????????? | | ?????????????????????????????????????????????????? | | ???????????????????#?????????????????????????????? | | ????????????????? ?????????????????????????????? | | ????????????????? T ?????????????????????????????? | | ????????????????? ?????????????????????????????? | | ?????????????????] ?????????????????????????????? | | ????????????????? ##########???????????????????? | | ?????????????????" # !#???????????????????? | | ???????? ??????" Yw """ #???????????????????? | | ???????# ??????" # """ #???????????????????? | | ???????# ?????? # s""" [#???????????????????? | | ???????+ ??????#+## #???????????????????# | | ???????# ??????# ##g"Ssu #???????????????????# | | ???????# ??????# ## """s #???????????????????# | | ???????# ??????# ## m""s #???????????????????# | | ???????# #?????# ## kg@ #???????????????????# | | ???????# #????## #####g#########???????????????# | | ???????# #????# g g!=! ??????????????# | | ???????# #????# * w ????????????#?# | | ???????# #????# %"" *! ???????????????# | | ???????# #????## ! !! ! ??? ???????# | | ???????# #?????# % """ ???###?# | | ???????# #?????# u / #???#??# | | ???????# ####### #??#???# | | ???????# % / #??????# | | ???????# ############# % %[ ######## | | ######?# ###?????????# = ]?? ## | | """""#?# #???????????+ %[! + | | ""T""### #???????????# ###### #???# # | | # #???????????# ##########???# # | | # #???????????# / ! #???# ####### | | # #???????????# # """ #???# #?#???# | | !!! + ############# # """ #???# #??#?## | | !! # # """ #???# #?#??# | | !! # + #???# #??#?# | | # # """ #???# #??#?# | | ###################[ """ #???# ##+###### | | Y"#### #?????????????????# """ #???# ## # | | ""???###?????????????????# #####/## # | | ##??????????????????################ #[ """ + | +----------------------------------------------------+ Best States ------------- Heat Dissipation 31 Energy Generation 10 Energy Capacity 250 Matter Stores 300 Matter Capacity 300 Sight Range 16 Terrain Scan Range 16 Terrain Scan Density 85 Armor Coverage 375 Resistance: TH 10 Evasion (%) 40 Recoil Reduction 4 Item Schematics ----------------- Huge Storage Unit | -10/Materials | Hacked Hcp. Storage Unit | -10/Materials | Hacked Robot Schematics ------------------ None Fabricated ------------ Nothing Repaired ---------- Lgt. Treads | 7% | -8/Materials Lgt. Treads | 15% | -8/Materials Studied --------- None Alien Tech Used ----------------- None Achievements -------------- None Challenges ------------ None Game ------ Seed CarbideDataRipteeth Manual? 0 Play Time 00:15:01 Cumulative 450.2 hours Start 2026.07.14 @ 05:55:05 End 2026.07.14 @ 06:09:06 Sessions 1 Manual Loads 0 Difficulty Rogue Special Mode None Game No. 411 Rogue 411 Adventurer 0 Explorer 0 Win Type - Total 11 Types 7/0/2/1/0/0/0/0/0/1 Lore% 61 Gallery% 69 Achievement% 65 Wizard Run 0 Options --------- Layout 1 ASCII 0 Keyboard 0 Movement Mouse Keybinds 0 Fullscreen 2 Font 24/Cog Map View 50x35 Zoom Use 25% Tactical HUD 1 Map Filters NONE Filters NONE Steam 1 RUN: 755e8d54-5a8b-400c-acff-d87358b65f38